[Event "*** SCC Grand Prix: Titled Tuesday Blitz"]
[Site "Chess.com"]
[Date "2020.07.21"]
[Round "10"]
[White "ajdemipopushi"]
[Black "Savva09022009"]
[Result "1-0"]
[WhiteElo "2356"]
[BlackElo "2417"]
[TimeControl "180+1"]
[EndTime "11:59:09 PDT"]
[Termination "ajdemipopushi won by resignation"]

1. Nf3 {[%clk 0:03:00.9]} 1... Nf6 {[%clk 0:02:59.8]} 2. g3 {[%clk 0:03:01.3]}
2... e6 {[%clk 0:03:00.7]} 3. c4 {[%clk 0:03:01.4]} 3... d5 {[%clk 0:03:01.6]}
4. Bg2 {[%clk 0:03:02]} 4... Be7 {[%clk 0:02:59.5]} 5. O-O {[%clk 0:03:01.9]}
5... O-O {[%clk 0:02:59.9]} 6. d4 {[%clk 0:03:02.6]} 6... c6 {[%clk 0:03:00.3]}
7. b3 {[%clk 0:03:02.1]} 7... Nbd7 {[%clk 0:03:00.7]} 8. Nc3 {[%clk 0:03:01]}
8... b6 {[%clk 0:03:01.3]} 9. Qc2 {[%clk 0:03:00.9]} 9... Bb7 {[%clk 0:03:01.8]}
10. Rd1 {[%clk 0:02:58.7]} 10... Ne4 {[%clk 0:03:02.3]} 11. Nxe4 {[%clk
0:02:57.6]} 11... dxe4 {[%clk 0:03:03.2]} 12. Qxe4 {[%clk 0:02:57.7]} 12... Nf6
{[%clk 0:03:04.1]} 13. Qc2 {[%clk 0:02:57.5]} 13... Qc7 {[%clk 0:03:01.3]} 14.
Bb2 {[%clk 0:02:56.7]} 14... c5 {[%clk 0:02:59.8]} 15. dxc5 {[%clk 0:02:55.1]}
15... Bxc5 {[%clk 0:02:56.2]} 16. Ng5 {[%clk 0:02:54.5]} 16... Bxf2+ {[%clk
0:02:33.7]} 17. Kxf2 {[%clk 0:02:47.8]} 17... Qc5+ {[%clk 0:02:31.2]} 18. Bd4
{[%clk 0:02:42.4]} 18... Qxg5 {[%clk 0:02:32.1]} 19. Bxb7 {[%clk 0:02:39.2]}
19... Rab8 {[%clk 0:02:30.5]} 20. Bf3 {[%clk 0:02:38.1]} 20... e5 {[%clk
0:02:27.2]} 21. Be3 {[%clk 0:02:30.7]} 21... Ng4+ {[%clk 0:02:24.5]} 22. Bxg4
{[%clk 0:02:30.5]} 22... Qxg4 {[%clk 0:02:25.4]} 23. Kg2 {[%clk 0:02:23.9]}
23... f5 {[%clk 0:02:23.8]} 24. Rf1 {[%clk 0:02:03.5]} 24... f4 {[%clk
0:02:22.2]} 25. Bg1 {[%clk 0:02:03.2]} 25... e4 {[%clk 0:02:05]} 26. Qxe4 {[%clk
0:01:55.1]} 26... Rbe8 {[%clk 0:02:03.7]} 27. Qf3 {[%clk 0:01:20.8]} 27... Rxe2+
{[%clk 0:01:47.1]} 28. Kh1 {[%clk 0:01:20.3]} 28... Qe6 {[%clk 0:01:42]} 29. Qd5
{[%clk 0:01:15.7]} 29... Qxd5+ {[%clk 0:01:39.5]} 30. cxd5 {[%clk 0:01:15.3]}
30... f3 {[%clk 0:01:40.4]} 31. Bf2 {[%clk 0:01:11.9]} 31... Rd8 {[%clk
0:01:27.8]} 32. Rad1 {[%clk 0:01:11.2]} 32... Rxa2 {[%clk 0:01:27.9]} 33. Rd3
{[%clk 0:01:09.2]} 33... b5 {[%clk 0:01:17.6]} 34. Bc5 {[%clk 0:01:03.9]} 34...
a5 {[%clk 0:01:13.3]} 35. Rdxf3 {[%clk 0:01:02.4]} 35... h6 {[%clk 0:01:09.9]}
36. Rf8+ {[%clk 0:00:58.1]} 36... Rxf8 {[%clk 0:01:10]} 37. Rxf8+ {[%clk
0:00:58.1]} 37... Kh7 {[%clk 0:01:10.9]} 38. Rb8 {[%clk 0:00:58.1]} 38... a4
{[%clk 0:01:03.4]} 39. Rxb5 {[%clk 0:00:53.6]} 39... a3 {[%clk 0:01:02.8]} 40.
Ra5 {[%clk 0:00:51.3]} 40... Ra1+ {[%clk 0:01:02.1]} 41. Kg2 {[%clk 0:00:51.3]}
41... a2 {[%clk 0:01:03]} 42. d6 {[%clk 0:00:42.1]} 42... Rc1 {[%clk 0:00:59.8]}
43. d7 {[%clk 0:00:41.6]} 43... Rxc5 {[%clk 0:00:51.3]} 44. d8=Q {[%clk
0:00:39.7]} 44... Rxa5 {[%clk 0:00:44.9]} 45. Qxa5 {[%clk 0:00:38.8]} 1-0

[Event "*** SCC Grand Prix: Titled Tuesday Blitz"]
[Site "Chess.com"]
[Date "2020.07.21"]
[Round "10"]
[White "DaggiGretarsson"]
[Black "Harsha_Bharathakoti"]
[Result "0-1"]
[WhiteElo "2618"]
[BlackElo "2767"]
[TimeControl "180+1"]
[EndTime "11:59:14 PDT"]
[Termination "Harsha_Bharathakoti won by resignation"]

1. d4 {[%clk 0:02:58.9]} 1... Nf6 {[%clk 0:02:59.7]} 2. c4 {[%clk 0:02:58.1]}
2... g6 {[%clk 0:02:59.5]} 3. Nc3 {[%clk 0:02:57.8]} 3... d5 {[%clk 0:03:00.2]}
4. Bf4 {[%clk 0:02:57.1]} 4... Bg7 {[%clk 0:02:59.9]} 5. e3 {[%clk 0:02:56.9]}
5... O-O {[%clk 0:03:00.6]} 6. Rc1 {[%clk 0:02:56.4]} 6... Be6 {[%clk
0:03:00.7]} 7. b3 {[%clk 0:02:55.8]} 7... c5 {[%clk 0:02:49.3]} 8. cxd5 {[%clk
0:02:50.5]} 8... Bxd5 {[%clk 0:01:41.6]} 9. dxc5 {[%clk 0:02:41.3]} 9... Qa5
{[%clk 0:01:41.9]} 10. Qd2 {[%clk 0:02:39.4]} 10... Rd8 {[%clk 0:01:42]} 11.
Nxd5 {[%clk 0:02:14.6]} 11... Qxd2+ {[%clk 0:01:41.7]} 12. Kxd2 {[%clk
0:02:14.8]} 12... Nxd5 {[%clk 0:01:42.6]} 13. Ke2 {[%clk 0:01:32.3]} 13... Nxf4+
{[%clk 0:01:30.5]} 14. exf4 {[%clk 0:01:32]} 14... Nc6 {[%clk 0:01:24.8]} 15.
Nf3 {[%clk 0:01:31.3]} 15... Nb4 {[%clk 0:01:25.5]} 16. a3 {[%clk 0:00:52.1]}
16... Nd3 {[%clk 0:01:18.2]} 17. Rc4 {[%clk 0:00:50.9]} 17... b5 {[%clk
0:00:55.2]} 18. Rc2 {[%clk 0:00:33.9]} 18... Nxf4+ {[%clk 0:00:52.6]} 19. Ke1
{[%clk 0:00:20.6]} 19... Nd3+ {[%clk 0:00:52.3]} 20. Bxd3 {[%clk 0:00:19.3]}
20... Rxd3 {[%clk 0:00:53.2]} 21. Ke2 {[%clk 0:00:18.4]} 21... Rxb3 {[%clk
0:00:53.3]} 22. c6 {[%clk 0:00:17.9]} 22... Bf6 {[%clk 0:00:47.2]} 23. Rd1
{[%clk 0:00:16.3]} 23... e6 {[%clk 0:00:46.4]} 24. c7 {[%clk 0:00:15.2]} 24...
Rc8 {[%clk 0:00:46]} 25. Ne5 {[%clk 0:00:13.8]} 25... Kg7 {[%clk 0:00:40.5]} 26.
Nd7 {[%clk 0:00:10.9]} 26... Rc3 {[%clk 0:00:33]} 27. Rxc3 {[%clk 0:00:07]}
27... Bxc3 {[%clk 0:00:33.9]} 28. Rc1 {[%clk 0:00:05]} 28... Rxc7 {[%clk
0:00:34.4]} 29. Ne5 {[%clk 0:00:04.1]} 29... Bxe5 {[%clk 0:00:34.2]} 0-1

[Event "*** SCC Grand Prix: Titled Tuesday Blitz"]
[Site "Chess.com"]
[Date "2020.07.21"]
[Round "10"]
[White "KobyKalavannan"]
[Black "GMartin_Petrov"]
[Result "0-1"]
[WhiteElo "2704"]
[BlackElo "2625"]
[TimeControl "180+1"]
[EndTime "11:59:19 PDT"]
[Termination "GMartin_Petrov won on time"]

1. d4 {[%clk 0:03:00.9]} 1... Nf6 {[%clk 0:02:57.3]} 2. c4 {[%clk 0:03:01.2]}
2... e6 {[%clk 0:02:57.7]} 3. Nf3 {[%clk 0:03:01.3]} 3... b6 {[%clk 0:02:56.3]}
4. g3 {[%clk 0:03:01.5]} 4... Ba6 {[%clk 0:02:56.9]} 5. Qc2 {[%clk 0:03:02]}
5... d5 {[%clk 0:02:52.2]} 6. cxd5 {[%clk 0:02:46.9]} 6... exd5 {[%clk
0:02:53.1]} 7. Bg2 {[%clk 0:02:46.9]} 7... Be7 {[%clk 0:02:53]} 8. O-O {[%clk
0:02:47.1]} 8... O-O {[%clk 0:02:52.8]} 9. Bf4 {[%clk 0:02:46.9]} 9... c5 {[%clk
0:02:50.4]} 10. Nc3 {[%clk 0:02:43.3]} 10... Nc6 {[%clk 0:02:45.2]} 11. Rfd1
{[%clk 0:02:41.1]} 11... Rc8 {[%clk 0:02:37.3]} 12. dxc5 {[%clk 0:02:40.9]}
12... bxc5 {[%clk 0:02:36]} 13. e3 {[%clk 0:02:37]} 13... Nb4 {[%clk 0:02:33.5]}
14. Qa4 {[%clk 0:02:34.7]} 14... Qe8 {[%clk 0:02:23.8]} 15. Qxe8 {[%clk
0:02:28.5]} 15... Rfxe8 {[%clk 0:02:24.7]} 16. Ne5 {[%clk 0:02:27.1]} 16... Bd6
{[%clk 0:02:06.1]} 17. Nd7 {[%clk 0:02:06.9]} 17... Bxf4 {[%clk 0:01:54.1]} 18.
Nxf6+ {[%clk 0:02:06.3]} 18... gxf6 {[%clk 0:01:55]} 19. gxf4 {[%clk 0:02:06.3]}
19... d4 {[%clk 0:01:55.4]} 20. exd4 {[%clk 0:01:45.7]} 20... cxd4 {[%clk
0:01:56.3]} 21. Rxd4 {[%clk 0:01:44.8]} 21... Nc2 {[%clk 0:01:55.6]} 22. Rd6
{[%clk 0:01:44.6]} 22... Nxa1 {[%clk 0:01:52.9]} 23. Rxa6 {[%clk 0:01:44.6]}
23... Re1+ {[%clk 0:01:52.8]} 24. Bf1 {[%clk 0:01:45]} 24... Kh8 {[%clk
0:01:46.6]} 25. f3 {[%clk 0:01:34.1]} 25... Rc1 {[%clk 0:01:37.2]} 26. Rxf6
{[%clk 0:01:10.4]} 26... Rc2 {[%clk 0:01:25.9]} 27. Ne2 {[%clk 0:00:42.7]} 27...
Rxb2 {[%clk 0:01:21.5]} 28. Rxf7 {[%clk 0:00:42.2]} 28... Rxa2 {[%clk
0:01:21.3]} 29. f5 {[%clk 0:00:37.7]} 29... Nc2 {[%clk 0:01:19.4]} 30. Re7
{[%clk 0:00:33]} 30... Nd4 {[%clk 0:01:05.1]} 31. Nxd4 {[%clk 0:00:31.7]} 31...
Rg8+ {[%clk 0:01:04.6]} 32. Kh1 {[%clk 0:00:26]} 32... Ra1 {[%clk 0:01:04.5]}
33. h4 {[%clk 0:00:21.5]} 33... Rxf1+ {[%clk 0:01:03.5]} 34. Kh2 {[%clk
0:00:22.3]} 34... Rf2+ {[%clk 0:00:56.1]} 35. Kh3 {[%clk 0:00:17.1]} 35... Rfg2
{[%clk 0:00:53.9]} 36. h5 {[%clk 0:00:09.8]} 36... R2g3+ {[%clk 0:00:51.9]} 37.
Kh2 {[%clk 0:00:09.1]} 37... R3g5 {[%clk 0:00:51.7]} 0-1

[Event "*** SCC Grand Prix: Titled Tuesday Blitz"]
[Site "Chess.com"]
[Date "2020.07.21"]
[Round "10"]
[White "SzMM19"]
[Black "bocah_sakit"]
[Result "0-1"]
[WhiteElo "2577"]
[BlackElo "2721"]
[TimeControl "180+1"]
[EndTime "11:59:23 PDT"]
[Termination "bocah_sakit won by resignation"]

1. e4 {[%clk 0:03:00.9]} 1... c5 {[%clk 0:03:00.3]} 2. Nf3 {[%clk 0:03:00.3]}
2... Nc6 {[%clk 0:03:00.9]} 3. Bb5 {[%clk 0:03:00.4]} 3... g6 {[%clk 0:03:01.2]}
4. Bxc6 {[%clk 0:03:00.5]} 4... dxc6 {[%clk 0:03:02.1]} 5. d3 {[%clk 0:03:01]}
5... Bg7 {[%clk 0:03:02.8]} 6. h3 {[%clk 0:03:01.6]} 6... Nf6 {[%clk 0:03:03.4]}
7. Nc3 {[%clk 0:03:02.3]} 7... Nd7 {[%clk 0:03:03.9]} 8. Be3 {[%clk 0:03:02.9]}
8... b6 {[%clk 0:03:04.3]} 9. Qd2 {[%clk 0:03:03.5]} 9... h6 {[%clk 0:03:05]}
10. Nh2 {[%clk 0:03:03.6]} 10... e5 {[%clk 0:03:05.7]} 11. O-O {[%clk
0:03:00.7]} 11... Nf8 {[%clk 0:03:05.4]} 12. f4 {[%clk 0:03:00]} 12... exf4
{[%clk 0:03:06.3]} 13. Bxf4 {[%clk 0:03:00.9]} 13... Ne6 {[%clk 0:03:06.1]} 14.
Be3 {[%clk 0:03:01.4]} 14... Nd4 {[%clk 0:03:06.4]} 15. Kh1 {[%clk 0:02:51.6]}
15... Be6 {[%clk 0:03:06.4]} 16. a4 {[%clk 0:02:31.6]} 16... Qd7 {[%clk
0:03:05.3]} 17. a5 {[%clk 0:02:31.1]} 17... b5 {[%clk 0:03:00.7]} 18. Ne2 {[%clk
0:02:05]} 18... O-O-O {[%clk 0:02:50.8]} 19. Bxd4 {[%clk 0:01:53.2]} 19... cxd4
{[%clk 0:02:51.7]} 20. Nf4 {[%clk 0:01:51.9]} 20... g5 {[%clk 0:02:42.4]} 21.
Nxe6 {[%clk 0:01:47.7]} 21... fxe6 {[%clk 0:02:43.3]} 22. Ng4 {[%clk 0:01:23.5]}
22... Rhf8 {[%clk 0:02:40.2]} 23. Qe2 {[%clk 0:00:57.9]} 23... Kb7 {[%clk
0:02:17.2]} 24. Nh2 {[%clk 0:00:51.4]} 24... Be5 {[%clk 0:02:13.2]} 25. Ng4
{[%clk 0:00:50.6]} 25... Bg7 {[%clk 0:02:05.5]} 26. Nh2 {[%clk 0:00:50.8]} 26...
Ka6 {[%clk 0:02:02.1]} 27. Ng4 {[%clk 0:00:38.8]} 27... Qe7 {[%clk 0:02:00.6]}
28. Nh2 {[%clk 0:00:28.3]} 28... Rxf1+ {[%clk 0:02:00.3]} 29. Rxf1 {[%clk
0:00:27.7]} 29... Rf8 {[%clk 0:02:00.5]} 30. Nf3 {[%clk 0:00:27.5]} 30... Qb4
{[%clk 0:01:56.7]} 31. b3 {[%clk 0:00:27.1]} 31... Kxa5 {[%clk 0:01:53.3]} 32.
Nh2 {[%clk 0:00:25.3]} 32... Kb6 {[%clk 0:01:53.2]} 33. Rxf8 {[%clk 0:00:24.7]}
33... Qxf8 {[%clk 0:01:54.1]} 34. Nf3 {[%clk 0:00:25]} 34... a5 {[%clk
0:01:53.5]} 35. e5 {[%clk 0:00:25.2]} 35... Qf4 {[%clk 0:01:52]} 36. Qe1 {[%clk
0:00:17.2]} 36... c5 {[%clk 0:01:50.4]} 37. Kg1 {[%clk 0:00:16]} 37... h5 {[%clk
0:01:50]} 38. Nd2 {[%clk 0:00:08.1]} 38... Bxe5 {[%clk 0:01:47.8]} 39. Ne4
{[%clk 0:00:07.8]} 39... a4 {[%clk 0:01:40.7]} 40. bxa4 {[%clk 0:00:07.3]} 40...
bxa4 {[%clk 0:01:41.6]} 41. Qa1 {[%clk 0:00:07.4]} 41... Qe3+ {[%clk 0:01:36.7]}
42. Kf1 {[%clk 0:00:06.5]} 42... Bh2 {[%clk 0:01:24.3]} 43. Qb2+ {[%clk
0:00:04.6]} 43... Kc6 {[%clk 0:01:24.1]} 44. Qa3 {[%clk 0:00:04.6]} 44... Qg1+
{[%clk 0:01:22.9]} 45. Ke2 {[%clk 0:00:05.1]} 45... Qxg2+ {[%clk 0:01:23.4]} 46.
Nf2 {[%clk 0:00:05.7]} 46... Bg3 {[%clk 0:01:12.8]} 47. Qxa4+ {[%clk 0:00:06]}
47... Kd6 {[%clk 0:01:13.1]} 48. Qa6+ {[%clk 0:00:02.6]} 48... Ke7 {[%clk
0:01:13.4]} 49. Qb7+ {[%clk 0:00:01.5]} 49... Qxb7 {[%clk 0:01:12.7]} 0-1

[Event "*** SCC Grand Prix: Titled Tuesday Blitz"]
[Site "Chess.com"]
[Date "2020.07.21"]
[Round "10"]
[White "jsl796"]
[Black "BakaPG"]
[Result "1-0"]
[WhiteElo "2894"]
[BlackElo "2655"]
[TimeControl "180+1"]
[EndTime "11:59:24 PDT"]
[Termination "jsl796 won on time"]

1. d4 {[%clk 0:03:00.9]} 1... d5 {[%clk 0:02:58.2]} 2. c4 {[%clk 0:03:00.8]}
2... c6 {[%clk 0:02:57.8]} 3. cxd5 {[%clk 0:03:00.5]} 3... cxd5 {[%clk
0:02:57.5]} 4. Bf4 {[%clk 0:03:01.4]} 4... Nc6 {[%clk 0:02:57.3]} 5. e3 {[%clk
0:03:01.9]} 5... Nf6 {[%clk 0:02:57.1]} 6. Nc3 {[%clk 0:03:02.2]} 6... Bg4
{[%clk 0:02:56.8]} 7. f3 {[%clk 0:02:59.7]} 7... Bf5 {[%clk 0:02:50]} 8. g4
{[%clk 0:02:58.6]} 8... Be6 {[%clk 0:02:47.2]} 9. h4 {[%clk 0:02:57.1]} 9... g6
{[%clk 0:02:43.6]} 10. Nh3 {[%clk 0:02:43.1]} 10... h6 {[%clk 0:02:41.7]} 11.
Bg3 {[%clk 0:02:42.6]} 11... Bg7 {[%clk 0:02:11]} 12. Nf4 {[%clk 0:02:39.9]}
12... Qd7 {[%clk 0:02:09.2]} 13. Qb3 {[%clk 0:02:35.3]} 13... g5 {[%clk
0:01:54.5]} 14. hxg5 {[%clk 0:02:30.2]} 14... hxg5 {[%clk 0:01:54.6]} 15. Rxh8+
{[%clk 0:02:30.3]} 15... Bxh8 {[%clk 0:01:54]} 16. Nxe6 {[%clk 0:02:30.2]} 16...
fxe6 {[%clk 0:01:50.4]} 17. Rc1 {[%clk 0:02:23.3]} 17... Kf7 {[%clk 0:01:48.1]}
18. Na4 {[%clk 0:02:22.1]} 18... Na5 {[%clk 0:01:39.2]} 19. Qb5 {[%clk
0:02:13.2]} 19... Qxb5 {[%clk 0:01:10.9]} 20. Bxb5 {[%clk 0:02:14.1]} 20... Ne8
{[%clk 0:01:02.7]} 21. Nc5 {[%clk 0:02:00.6]} 21... b6 {[%clk 0:00:53.5]} 22.
Nd3 {[%clk 0:01:46.3]} 22... Nd6 {[%clk 0:00:39.7]} 23. Bxd6 {[%clk 0:01:45.6]}
23... exd6 {[%clk 0:00:39.9]} 24. b4 {[%clk 0:01:42.6]} 24... Nc4 {[%clk
0:00:37.5]} 25. Bxc4 {[%clk 0:01:41.9]} 25... dxc4 {[%clk 0:00:36.8]} 26. Rxc4
{[%clk 0:01:42.8]} 26... a5 {[%clk 0:00:35.2]} 27. b5 {[%clk 0:01:42.5]} 27...
Bf6 {[%clk 0:00:30.1]} 28. Rc7+ {[%clk 0:01:00.4]} 28... Ke8 {[%clk 0:00:29.2]}
29. Rc6 {[%clk 0:00:59.4]} 29... Kd7 {[%clk 0:00:21.5]} 30. a4 {[%clk
0:00:55.5]} 30... Bd8 {[%clk 0:00:20.2]} 31. Nf2 {[%clk 0:00:54.2]} 31... Bc7
{[%clk 0:00:18.8]} 32. Ne4 {[%clk 0:00:53]} 32... Rf8 {[%clk 0:00:12]} 33. Nxg5
{[%clk 0:00:52.4]} 33... Bd8 {[%clk 0:00:07.6]} 34. Ne4 {[%clk 0:00:52.4]} 34...
d5 {[%clk 0:00:08.1]} 35. Nd2 {[%clk 0:00:51.7]} 35... Rh8 {[%clk 0:00:06.4]}
36. f4 {[%clk 0:00:50.4]} 36... Rh2 {[%clk 0:00:05.4]} 37. Nf3 {[%clk
0:00:49.9]} 37... Rg2 {[%clk 0:00:04.8]} 38. Ne5+ {[%clk 0:00:49.4]} 38... Ke7
{[%clk 0:00:05]} 39. Rc8 {[%clk 0:00:48.1]} 1-0

[Event "*** SCC Grand Prix: Titled Tuesday Blitz"]
[Site "Chess.com"]
[Date "2020.07.21"]
[Round "10"]
[White "capatl"]
[Black "BlackBoarder"]
[Result "0-1"]
[WhiteElo "2427"]
[BlackElo "2571"]
[TimeControl "180+1"]
[EndTime "11:59:24 PDT"]
[Termination "BlackBoarder won by resignation"]

1. c4 {[%clk 0:03:00.9]} 1... e6 {[%clk 0:02:54.5]} 2. d4 {[%clk 0:02:59.9]}
2... Nf6 {[%clk 0:02:54]} 3. Nf3 {[%clk 0:02:59.4]} 3... d5 {[%clk 0:02:53.8]}
4. Nc3 {[%clk 0:02:50.6]} 4... Bb4 {[%clk 0:02:53]} 5. cxd5 {[%clk 0:02:35.6]}
5... exd5 {[%clk 0:02:51.8]} 6. Bg5 {[%clk 0:02:22.9]} 6... h6 {[%clk 0:02:51]}
7. Bxf6 {[%clk 0:02:15]} 7... Qxf6 {[%clk 0:02:51.9]} 8. Qa4+ {[%clk 0:02:08.9]}
8... Nc6 {[%clk 0:02:51.1]} 9. a3 {[%clk 0:02:08.7]} 9... Bxc3+ {[%clk
0:02:33.2]} 10. bxc3 {[%clk 0:02:09.6]} 10... O-O {[%clk 0:02:30.6]} 11. e3
{[%clk 0:02:09.4]} 11... Ne7 {[%clk 0:02:06.9]} 12. c4 {[%clk 0:02:00.9]} 12...
Bg4 {[%clk 0:02:01.6]} 13. Ne5 {[%clk 0:01:47.7]} 13... Bf5 {[%clk 0:01:58.2]}
14. c5 {[%clk 0:01:22]} 14... b6 {[%clk 0:01:47.9]} 15. Rc1 {[%clk 0:01:04.9]}
15... bxc5 {[%clk 0:01:38.6]} 16. Rxc5 {[%clk 0:01:04.3]} 16... Rab8 {[%clk
0:01:37.5]} 17. Bb5 {[%clk 0:00:36.9]} 17... a6 {[%clk 0:01:24.2]} 18. Be2
{[%clk 0:00:31.9]} 18... Rb1+ {[%clk 0:01:21.6]} 19. Bd1 {[%clk 0:00:32.1]}
19... Ng6 {[%clk 0:01:03.3]} 20. Nxg6 {[%clk 0:00:26.6]} 20... Qxg6 {[%clk
0:01:01.2]} 21. O-O {[%clk 0:00:24.4]} 21... Bh3 {[%clk 0:00:36.7]} 22. Bf3
{[%clk 0:00:23.8]} 22... Rxf1+ {[%clk 0:00:35.6]} 23. Kxf1 {[%clk 0:00:23.9]}
23... Qd3+ {[%clk 0:00:35.9]} 24. Ke1 {[%clk 0:00:20.6]} 24... Bf5 {[%clk
0:00:34.9]} 25. Qd1 {[%clk 0:00:16.2]} 25... Qxa3 {[%clk 0:00:34.3]} 26. Rxd5
{[%clk 0:00:15.9]} 26... Bd3 {[%clk 0:00:26.9]} 27. Rc5 {[%clk 0:00:14.7]} 27...
Rb8 {[%clk 0:00:26.4]} 28. Rc1 {[%clk 0:00:13.5]} 28... Rb2 {[%clk 0:00:23.2]}
29. Bd5 {[%clk 0:00:07.3]} 29... Qa5+ {[%clk 0:00:20.4]} 0-1

[Event "*** SCC Grand Prix: Titled Tuesday Blitz"]
[Site "Chess.com"]
[Date "2020.07.21"]
[Round "10"]
[White "grandcoach"]
[Black "canary2016"]
[Result "0-1"]
[WhiteElo "2110"]
[BlackElo "1940"]
[TimeControl "180+1"]
[EndTime "11:59:26 PDT"]
[Termination "canary2016 won by resignation"]

1. e4 {[%clk 0:03:00.9]} 1... e5 {[%clk 0:02:57]} 2. Nf3 {[%clk 0:02:58.1]} 2...
Nf6 {[%clk 0:02:57.2]} 3. d4 {[%clk 0:02:56.5]} 3... Nxe4 {[%clk 0:02:53.3]} 4.
dxe5 {[%clk 0:02:56]} 4... d5 {[%clk 0:02:52.1]} 5. Nbd2 {[%clk 0:02:56.3]} 5...
Be7 {[%clk 0:02:43.5]} 6. Nxe4 {[%clk 0:02:44.5]} 6... dxe4 {[%clk 0:02:43.1]}
7. Qxd8+ {[%clk 0:02:44.3]} 7... Bxd8 {[%clk 0:02:40.9]} 8. Ng5 {[%clk
0:02:43.6]} 8... Bf5 {[%clk 0:02:28.1]} 9. Bc4 {[%clk 0:02:37.5]} 9... Bxg5
{[%clk 0:02:23.2]} 10. Bxg5 {[%clk 0:02:38.4]} 10... O-O {[%clk 0:02:23.1]} 11.
O-O-O {[%clk 0:02:35.3]} 11... h6 {[%clk 0:02:19.5]} 12. Bh4 {[%clk 0:02:00.7]}
12... Nc6 {[%clk 0:02:17]} 13. Bg3 {[%clk 0:01:37.7]} 13... Rad8 {[%clk
0:02:15.9]} 14. Bd5 {[%clk 0:01:30.2]} 14... Nb4 {[%clk 0:01:59.4]} 15. Bxb7
{[%clk 0:01:29.3]} 15... Nxa2+ {[%clk 0:01:59.3]} 16. Kb1 {[%clk 0:01:28.4]}
16... Nb4 {[%clk 0:01:59.4]} 17. Bh4 {[%clk 0:01:08.8]} 17... Rxd1+ {[%clk
0:01:49.3]} 18. Rxd1 {[%clk 0:01:07.4]} 18... e3 {[%clk 0:01:48.4]} 19. fxe3
{[%clk 0:00:33.6]} 19... Bxc2+ {[%clk 0:01:46.8]} 20. Kc1 {[%clk 0:00:34.2]}
20... Bxd1 {[%clk 0:01:43.6]} 21. Kxd1 {[%clk 0:00:35.1]} 21... Rb8 {[%clk
0:01:40.3]} 22. Be4 {[%clk 0:00:33.2]} 22... Rb5 {[%clk 0:01:33.5]} 23. Be7
{[%clk 0:00:29.6]} 23... Rxe5 {[%clk 0:01:29.8]} 24. Bxb4 {[%clk 0:00:27.9]}
24... Rxe4 {[%clk 0:01:29.9]} 25. Bd2 {[%clk 0:00:28.2]} 25... Kf8 {[%clk
0:01:26.7]} 26. Kc2 {[%clk 0:00:27.9]} 26... Ke7 {[%clk 0:01:26.5]} 27. Kd3
{[%clk 0:00:28.5]} 27... Rg4 {[%clk 0:01:24.4]} 28. g3 {[%clk 0:00:27.6]} 28...
Ra4 {[%clk 0:01:23.3]} 29. Bc3 {[%clk 0:00:26.2]} 29... g6 {[%clk 0:01:21.3]}
30. e4 {[%clk 0:00:25.8]} 30... Ke6 {[%clk 0:01:21.1]} 31. Bd4 {[%clk
0:00:20.2]} 31... Ra1 {[%clk 0:01:16.8]} 32. h4 {[%clk 0:00:16.9]} 32... Ra2
{[%clk 0:01:13.6]} 33. Kc3 {[%clk 0:00:15.6]} 33... Ra4 {[%clk 0:01:09.6]} 34.
Kd3 {[%clk 0:00:13.7]} 34... a5 {[%clk 0:01:08.8]} 35. Kc3 {[%clk 0:00:12.9]}
35... Rb4 {[%clk 0:01:05.1]} 36. Kd3 {[%clk 0:00:11.1]} 36... a4 {[%clk
0:01:04.1]} 37. Bc3 {[%clk 0:00:11.3]} 37... Rb3 {[%clk 0:01:02.9]} 38. Kc4
{[%clk 0:00:10]} 38... f5 {[%clk 0:00:56.6]} 39. exf5+ {[%clk 0:00:07]} 39...
Kxf5 {[%clk 0:00:56.1]} 40. Bg7 {[%clk 0:00:03.8]} 40... h5 {[%clk 0:00:46.1]}
41. Bh6 {[%clk 0:00:01.2]} 0-1

[Event "*** SCC Grand Prix: Titled Tuesday Blitz"]
[Site "Chess.com"]
[Date "2020.07.21"]
[Round "10"]
[White "Alexander_Moskalenko"]
[Black "mishanick"]
[Result "1-0"]
[WhiteElo "2823"]
[BlackElo "2915"]
[TimeControl "180+1"]
[EndTime "11:59:27 PDT"]
[Termination "Alexander_Moskalenko won by checkmate"]

1. c4 {[%clk 0:03:00.9]} 1... e5 {[%clk 0:02:59.9]} 2. Nc3 {[%clk 0:03:00.6]}
2... Nf6 {[%clk 0:03:00.5]} 3. Nf3 {[%clk 0:03:00.1]} 3... Nc6 {[%clk 0:03:01]}
4. g3 {[%clk 0:03:00]} 4... Bb4 {[%clk 0:03:01.4]} 5. Bg2 {[%clk 0:02:59.2]}
5... O-O {[%clk 0:03:01.8]} 6. O-O {[%clk 0:02:58]} 6... e4 {[%clk 0:02:54.6]}
7. Ng5 {[%clk 0:02:57.7]} 7... Bxc3 {[%clk 0:02:51.6]} 8. bxc3 {[%clk
0:02:58.6]} 8... Qe7 {[%clk 0:02:50.1]} 9. Qc2 {[%clk 0:02:36.2]} 9... Re8
{[%clk 0:02:47.6]} 10. d3 {[%clk 0:02:36.6]} 10... exd3 {[%clk 0:02:43.3]} 11.
exd3 {[%clk 0:02:37.5]} 11... h6 {[%clk 0:02:41.3]} 12. Nf3 {[%clk 0:02:38]}
12... d6 {[%clk 0:02:40.2]} 13. Bf4 {[%clk 0:02:36.5]} 13... Bf5 {[%clk
0:02:36.9]} 14. Nd4 {[%clk 0:02:37]} 14... Nxd4 {[%clk 0:02:34.7]} 15. cxd4
{[%clk 0:02:37.9]} 15... c6 {[%clk 0:02:34.2]} 16. h3 {[%clk 0:02:31]} 16... Qd7
{[%clk 0:02:13.4]} 17. g4 {[%clk 0:02:28.1]} 17... Bg6 {[%clk 0:02:13.1]} 18. a4
{[%clk 0:02:27.7]} 18... h5 {[%clk 0:02:06.4]} 19. f3 {[%clk 0:02:21.4]} 19...
c5 {[%clk 0:02:00.1]} 20. d5 {[%clk 0:02:16.7]} 20... b6 {[%clk 0:01:55.5]} 21.
Qd2 {[%clk 0:02:16.6]} 21... Nh7 {[%clk 0:01:47.9]} 22. Bg3 {[%clk 0:02:10.8]}
22... Re7 {[%clk 0:01:40]} 23. d4 {[%clk 0:01:54.9]} 23... Rae8 {[%clk
0:01:36.6]} 24. dxc5 {[%clk 0:01:50.4]} 24... bxc5 {[%clk 0:01:35.8]} 25. Rfe1
{[%clk 0:01:50.9]} 25... hxg4 {[%clk 0:01:19.5]} 26. hxg4 {[%clk 0:01:50.5]}
26... Nf6 {[%clk 0:01:12.9]} 27. a5 {[%clk 0:01:41.6]} 27... Rxe1+ {[%clk
0:01:09.7]} 28. Rxe1 {[%clk 0:01:42.2]} 28... Rb8 {[%clk 0:01:08.8]} 29. Bf1
{[%clk 0:01:36.4]} 29... Rb3 {[%clk 0:01:03.8]} 30. Qf4 {[%clk 0:01:36.5]} 30...
Ne8 {[%clk 0:00:57.7]} 31. Re3 {[%clk 0:01:36.1]} 31... Rb1 {[%clk 0:00:49.6]}
32. Re1 {[%clk 0:01:34.5]} 32... Rb3 {[%clk 0:00:47.4]} 33. Kf2 {[%clk 0:01:31]}
33... Kf8 {[%clk 0:00:46.1]} 34. Qd2 {[%clk 0:01:21.7]} 34... Qb7 {[%clk
0:00:37]} 35. Qg5 {[%clk 0:01:11.2]} 35... Qd7 {[%clk 0:00:22.7]} 36. Qh4 {[%clk
0:01:10.9]} 36... Nf6 {[%clk 0:00:23.3]} 37. Qh8+ {[%clk 0:01:01.2]} 37... Ng8
{[%clk 0:00:22.9]} 38. Qh2 {[%clk 0:01:00.5]} 38... Rb2+ {[%clk 0:00:23.4]} 39.
Be2 {[%clk 0:01:00.3]} 39... Ke7 {[%clk 0:00:18.8]} 40. Kf1 {[%clk 0:00:59.4]}
40... Qc7 {[%clk 0:00:16.8]} 41. Bd3+ {[%clk 0:00:58.1]} 41... Kd7 {[%clk
0:00:16.3]} 42. Qxb2 {[%clk 0:00:54.2]} 42... Bxd3+ {[%clk 0:00:13.8]} 43. Kf2
{[%clk 0:00:54.9]} 43... Qxa5 {[%clk 0:00:13.5]} 44. Qb7+ {[%clk 0:00:52.7]}
44... Kd8 {[%clk 0:00:13.9]} 45. Qb8+ {[%clk 0:00:50.2]} 45... Kd7 {[%clk
0:00:14.5]} 46. Qxd6+ {[%clk 0:00:50.8]} 46... Kc8 {[%clk 0:00:15.1]} 47. Re8+
{[%clk 0:00:49.5]} 47... Kb7 {[%clk 0:00:15.7]} 48. Rb8# {[%clk 0:00:50.4]} 1-0